Workbook

Sheet VBA
B2: Rounding to Significant Figures Using Custom Function
B4: Customer | C4: Brand | D4: Sales | E4: Rounded Figure
B5: Jonas | C5: Lenovo | D5: 7611250 | E5: =ROUNDSIGNIFICANT(D5,3) -> 7610000
B6: Miller | C6: Lenovo | D6: 1212690 | E6: =ROUNDSIGNIFICANT(D6,3) -> 1210000
B7: Abbie | C7: Asus | D7: 2121250 | E7: =ROUNDSIGNIFICANT(D7,3) -> 2120000
B8: Nick | C8: Asus | D8: 2145250 | E8: =ROUNDSIGNIFICANT(D8,3) -> 2150000
B9: Agnola | C9: Acer | D9: 4565780 | E9: =ROUNDSIGNIFICANT(D9,3) -> 4570000
B10: Kane | C10: HP | D10: 1892450 | E10: =ROUNDSIGNIFICANT(D10,3) -> 1890000
B11: Agnes | C11: Acer | D11: 2671450 | E11: =ROUNDSIGNIFICANT(D11,3) -> 2670000
B12: Adorne | C12: Lenovo | D12: 1269970 | E12: =ROUNDSIGNIFICANT(D12,3) -> 1270000
B13: Amie | C13: Acer | D13: 2146550 | E13: =ROUNDSIGNIFICANT(D13,3) -> 2150000
B14: Alfreda | C14: Dell | D14: 1178550 | E14: =ROUNDSIGNIFICANT(D14,3) -> 1180000
B15: Analise | C15: Acer | D15: 4987580 | E15: =ROUNDSIGNIFICANT(D15,3) -> 4990000
B16: Alethea | C16: Dell | D16: 1178780 | E16: =ROUNDSIGNIFICANT(D16,3) -> 1180000
B17: Adriane | C17: HP | D17: 1189790 | E17: =ROUNDSIGNIFICANT(D17,3) -> 1190000
B18: Almira | C18: HP | D18: 1247750 | E18: =ROUNDSIGNIFICANT(D18,3) -> 1250000
B19: Bob | C19: Asus | D19: 1656660 | E19: =ROUNDSIGNIFICANT(D19,3) -> 1660000
B20: Amabel | C20: Dell | D20: 1484460 | E20: =ROUNDSIGNIFICANT(D20,3) -> 1480000

Sheet Formula (2)
B2: Rounding to Significant Figures Using Formula
B4: Customer | C4: Brand | D4: Sales | E4: Rounded Figure | G4: Significant Figure
B5: Jonas | C5: Lenovo | D5: 7611250 | E5: 7611000 | G5: 3
B6: Miller | C6: Lenovo | D6: 1212690 | E6: =ROUND(D6/10^(INT(LOG10(D6))+1),$G$5)*10^(INT(LOG10(D6))+1) -> 1210000
B7: Abbie | C7: Asus | D7: 2121250 | E7: 2120000
B8: Nick | C8: Asus | D8: 2145250 | E8: 2150000
B9: Agnola | C9: Acer | D9: 4565780 | E9: 4570000
B10: Kane | C10: HP | D10: 1892450 | E10: 1890000
B11: Agnes | C11: Acer | D11: 2671450 | E11: 2670000
B12: Adorne | C12: Lenovo | D12: 1269970 | E12: 1270000
B13: Amie | C13: Acer | D13: 2146550 | E13: 2150000
B14: Alfreda | C14: Dell | D14: 1178550 | E14: 1180000
B15: Analise | C15: Acer | D15: 4987580 | E15: 4990000
B16: Alethea | C16: Dell | D16: 1178780 | E16: 1180000
B17: Adriane | C17: HP | D17: 1189790 | E17: 1190000
B18: Almira | C18: HP | D18: 1247750 | E18: 1250000
B19: Bob | C19: Asus | D19: 1656660 | E19: 1660000
B20: Amabel | C20: Dell | D20: 1484460 | E20: 1480000

Sheet Formula
B2: Rounding to Significant Figures Using Formula
B4: Customer | C4: Brand | D4: Sales | E4: Rounded Figure
B5: Jonas | C5: Lenovo | D5: 7611250 | E5: =ROUND(D5,3-(1+INT(LOG10(ABS(D5))))) -> 7610000
B6: Miller | C6: Lenovo | D6: 1212690 | E6: =ROUND(D6,3-(1+INT(LOG10(ABS(D6))))) -> 1210000
B7: Abbie | C7: Asus | D7: 2121250 | E7: 2120000
B8: Nick | C8: Asus | D8: 2145250 | E8: 2150000
B9: Agnola | C9: Acer | D9: 4565780 | E9: 4570000
B10: Kane | C10: HP | D10: 1892450 | E10: 1890000
B11: Agnes | C11: Acer | D11: 2671450 | E11: 2670000
B12: Adorne | C12: Lenovo | D12: 1269970 | E12: 1270000
B13: Amie | C13: Acer | D13: 2146550 | E13: 2150000
B14: Alfreda | C14: Dell | D14: 1178550 | E14: 1180000
B15: Analise | C15: Acer | D15: 4987580 | E15: 4990000
B16: Alethea | C16: Dell | D16: 1178780 | E16: 1180000
B17: Adriane | C17: HP | D17: 1189790 | E17: 1190000
B18: Almira | C18: HP | D18: 1247750 | E18: 1250000
B19: Bob | C19: Asus | D19: 1656660 | E19: 1660000
B20: Amabel | C20: Dell | D20: 1484460 | E20: 1480000

Sheet Dataset
B2: Rounding to Significant Figures in Excel
B4: Customer | C4: Brand | D4: Sales | E4: Rounded Figure
B5: Jonas | C5: Lenovo | D5: 7611250
B6: Miller | C6: Lenovo | D6: 1212690
B7: Abbie | C7: Asus | D7: 2121250
B8: Nick | C8: Asus | D8: 2145250
B9: Agnola | C9: Acer | D9: 4565780
B10: Kane | C10: HP | D10: 1892450
B11: Agnes | C11: Acer | D11: 2671450
B12: Adorne | C12: Lenovo | D12: 1269970
B13: Amie | C13: Acer | D13: 2146550
B14: Alfreda | C14: Dell | D14: 1178550
B15: Analise | C15: Acer | D15: 4987580
B16: Alethea | C16: Dell | D16: 1178780
B17: Adriane | C17: HP | D17: 1189790
B18: Almira | C18: HP | D18: 1247750
B19: Bob | C19: Asus | D19: 1656660
B20: Amabel | C20: Dell | D20: 1484460
